[Event "FRA-chT Top 12 2019"]
[Site "Brest"]
[Date "2019.05.19"]
[Round "2.1"]
[White "Lagarde, Maxime"]
[Black "Donchenko, Alexander"]
[Result "0-1"]
[ECO "B23"]
[WhiteElo "2600"]
[BlackElo "2595"]
[Annotator "ChessBase"]
[PlyCount "188"]
[EventDate "2019.05.18"]
[EventType "team-tourn"]
[EventCountry "FRA"]
[SourceTitle "playchess.com"]
[Source "ChessBase"]
[SourceQuality "1"]
[TimeControl "40/5400+30:1800+30"]

1. e4 {[%emt 0:00:00]} c5 {[%emt 0:00:00]} 2. Nc3 {[%emt 0:00:00]} d6 {[%emt 0:00:09]} 3. d4 {[%emt 0:00:00]} cxd4 {[%emt 0:00:19]} 4. Qxd4 {[%emt 0:00:00]} Nc6 {[%emt 0:00:41]} 5. Qd2 {[%emt 0:00:50]} g6 {[%emt 0:00:56]} 6. b3 {[%emt 0:00:09]} Bh6 {[%emt 0:00:23]} 7. f4 {[%emt 0:00:13]} f5 {[%emt 0:01:36]} 8. Bd3 {[%emt 0:12:59]} fxe4 {[%emt 0:11:03]} 9. Bxe4 {[%emt 0:01:19]} Nf6 {[%emt 0:01:16]} 10. Bxc6+ {[%emt 0:04:03]} bxc6 {[%emt 0:00:17]} 11. Bb2 {[%emt 0:01:17]} O-O {[%emt 0:08:18]} 12. Nge2 {[%emt 0:00:14]} e5 {[%emt 0:13:34]} 13. O-O-O {[%emt 0:00:47]} d5 {[%emt 0:00:55]} 14. Kb1 {[%emt 0:00:20]} Ng4 {[%emt 0:11:01]} 15. Na4 {[%emt 0:05:11]} d4 {[%emt 0:06:34]} 16. Qb4 {[%emt 0:11:21]} Ba6 {[%emt 0:02:50]} 17. Nxd4 {[%emt 0:11:00]} exd4 {[%emt 0:00:23]} 18. Rxd4 {[%emt 0:00:34]} Qc7 {[%emt 0:06:32]} 19. Nc5 {[%emt 0:03:49]} Bc8 {[%emt 0:01:26]} 20. Re1 {[%emt 0:11:22]} Nf6 {[%emt 0:04:56]} 21. g3 {[%emt 0:15:35]} Bg7 {[%emt 0:03:48]} 22. Qc4+ {[%emt 0:07:18]} Kh8 {[%emt 0:03:40]} 23. Ne6 {[%emt 0:07:09]} Bxe6 {[%emt 0:01:22]} 24. Rxe6 {[%emt 0:00:02]} Rae8 {[%emt 0:03:06]} 25. Rdd6 {[%emt 0:00:55]} Rxe6 {[%emt 0:01:06]} 26. Rxe6 {[%emt 0:00:04]} c5 {[%emt 0:05:34]} 27. a4 {[%emt 0:02:13]} Qf7 {[%emt 0:01:09]} 28. a5 {[%emt 0:01:53]} Rd8 {[%emt 0:03:16]} 29. Ra6 {[%emt 0:03:19]} Nd5 {[%emt 0:07:14]} 30. Qxc5 {[%emt 0:00:03]} Bxb2 {[%emt 0:00:07]} 31. Kxb2 {[%emt 0:00:01]} Qg7+ {[%emt 0:00:06]} 32. c3 {[%emt 0:00:03]} Nxc3 {[%emt 0:00:13]} 33. Qe5 {[%emt 0:00:05]} Qxe5 {[%emt 0:01:14]} 34. fxe5 {[%emt 0:00:03]} Nb5 {[%emt 0:00:11]} 35. b4 {[%emt 0:01:13]} Re8 {[%emt 0:00:51]} 36. e6 {[%emt 0:01:55]} Kg7 {[%emt 0:00:36]} 37. Kb3 {[%emt 0:00:37]} Kf6 {[%emt 0:00:24]} 38. Kc4 {[%emt 0:00:17]} Rb8 {[%emt 0:00:10]} 39. Rc6 {[%emt 0:00:27]} Ke7 {[%emt 0:01:43]} 40. Kd5 {[%emt 0:00:45]} h5 {[%emt 0:00:27]} 41. h4 {[%emt 0:30:31]} Rf8 {[%emt 0:03:48]} 42. Rc4 {[%emt 0:00:00]} Rd8+ {[%emt 0:01:42]} 43. Ke5 {[%emt 0:00:00]} Rd6 {[%emt 0:00:19]} 44. g4 {[%emt 0:00:00]} Rxe6+ {[%emt 0:00:45]} 45. Kd5 {[%emt 0:00:00]} Kd7 {[%emt 0:02:28]} 46. gxh5 {[%emt 0:00:00]} gxh5 {[%emt 0:00:15]} 47. Rc1 {[%emt 0:00:00]} Rg6 {[%emt 0:07:15]} 48. Rf1 {[%emt 0:00:00]} Nd6 {[%emt 0:01:41]} 49. Rf8 {[%emt 0:00:00]} Rh6 {[%emt 0:07:16]} 50. Rf1 {[%emt 0:00:00]} Rh7 {[%emt 0:01:32]} 51. Rf6 {[%emt 0:00:00]} Ne8 {[%emt 0:00:04]} 52. Rf5 {[%emt 0:00:00]} Nc7+ {[%emt 0:00:45]} 53. Kc5 {[%emt 0:00:00]} Ne6+ {[%emt 0:00:05]} 54. Kd5 {[%emt 0:00:00]} a6 {[%emt 0:01:44]} 55. Rf6 {[%emt 0:00:00]} Re7 {[%emt 0:01:30]} 56. Rf5 {[%emt 0:01:33]} Rg7 {[%emt 0:00:03]} 57. Ke5 {[%emt 0:01:14]} Rh7 {[%emt 0:00:40]} 58. Kd5 {[%emt 0:02:43]} Nc7+ {[%emt 0:00:06]} 59. Kc5 {[%emt 0:00:54]} Rh6 {[%emt 0:00:13]} 60. Rf7+ {[%emt 0:00:29]} Kc8 {[%emt 0:00:02]} 61. Rf8+ {[%emt 0:00:31]} Kb7 {[%emt 0:00:02]} 62. Rf5 {[%emt 0:00:03]} Rh8 {[%emt 0:01:32]} 63. Re5 {[%emt 0:00:46]} Rh7 {[%emt 0:02:38]} 64. Rf5 {[%emt 0:00:09]} Nb5 {[%emt 0:00:28]} 65. Rg5 {[%emt 0:01:56]} Rh6 {[%emt 0:00:27]} 66. Rf5 {[%emt 0:01:12]} Rc6+ {[%emt 0:02:15]} 67. Kd5 {[%emt 0:00:02]} Rd6+ {[%emt 0:00:11]} 68. Kc5 {[%emt 0:00:30]} Rh6 {[%emt 0:00:04]} 69. Rf7+ {[%emt 0:00:55]} Nc7 {[%emt 0:00:03]} 70. Rf5 {[%emt 0:00:02]} Rc6+ {[%emt 0:03:28]} 71. Kd4 {[%emt 0:00:03]} Rd6+ {[%emt 0:00:03]} 72. Kc4 {[%emt 0:00:40]} Rh6 {[%emt 0:02:00]} 73. Kc5 {[%emt 0:00:03]} Rg6 {[%emt 0:00:13]} 74. Rxh5 {[%emt 0:00:35]} Ne6+ {[%emt 0:00:01]} 75. Kc4 {[%emt 0:00:06]} Kc6 {[%emt 0:00:19]} 76. Kb3 {[%emt 0:01:41]} Rg3+ {[%emt 0:00:54]} 77. Kc4 {[%emt 0:01:16]} Rg4+ {[%emt 0:00:04]} 78. Kc3 {[%emt 0:00:32]} Nc7 {[%emt 0:00:34]} 79. Rh6+ {[%emt 0:00:22]} Kb5 {[%emt 0:00:15]} 80. h5 {[%emt 0:01:05]} Nd5+ {[%emt 0:00:22]} 81. Kd2 {[%emt 0:00:33]} Nxb4 {[%emt 0:01:47]} 82. Rh8 {[%emt 0:00:14]} Kxa5 {[%emt 0:00:35]} 83. h6 {[%emt 0:00:23]} Rh4 {[%emt 0:00:27]} 84. h7 {[%emt 0:00:27]} Rh3 {[%emt 0:00:39]} 85. Ke1 {[%emt 0:00:48]} Ka4 {[%emt 0:00:46]} 86. Kf1 {[%emt 0:00:05]} a5 {[%emt 0:00:12]} 87. Kg2 {[%emt 0:00:05]} Rh6 {[%emt 0:00:17]} 88. Kf3 {[%emt 0:00:31]} Nd5 {[%emt 0:00:58]} 89. Rd8 {[%emt 0:00:05]} Rh3+ {[%emt 0:00:19]} 90. Kf2 {[%emt 0:00:27]} Rxh7 {[%emt 0:00:10]} 91. Rxd5 {[%emt 0:00:04]} Re7 {[%emt 0:00:09]} 92. Rd4+ {[%emt 0:02:26]} Kb3 {[%emt 0:00:13]} 93. Rd3+ {[%emt 0:00:30]} Kc4 {[%emt 0:00:09]} 94. Ra3 {[%emt 0:00:32]} Kb4 {[%emt 0:00:07]} 0-1

[Event "FRA-chT Top 12 2019"]
[Site "Brest"]
[Date "2019.05.19"]
[Round "2.3"]
[White "Wagner, Dennis"]
[Black "Bailet, Pierre"]
[Result "1/2-1/2"]
[ECO "A06"]
[WhiteElo "2578"]
[BlackElo "2466"]
[Annotator "RC"]
[PlyCount "96"]
[EventDate "2019.05.18"]
[EventType "team-tourn"]
[EventCountry "FRA"]
[SourceTitle "playchess.com"]
[Source "ChessBase"]
[SourceQuality "1"]
[TimeControl "40/5400+30:1800+30"]

1. Nf3 {[%emt 0:00:00]} d5 {[%emt 0:00:10]} 2. e3 {[%emt 0:00:07]} Nf6 {[%emt 0:01:01]} 3. c4 {[%emt 0:00:05]} e6 {[%emt 0:00:55]} 4. Nc3 {[%emt 0:00:06]} Be7 {[%emt 0:01:17]} 5. b3 {[%emt 0:00:14]} O-O {[%emt 0:03:27]} 6. Bb2 {[%emt 0:00:32]} c5 {[%emt 0:02:18]} 7. cxd5 {[%emt 0:00:14]} exd5 {[%emt 0:00:56]} 8. d4 {[%emt 0:01:10]} Nc6 {[%emt 0:01:21]} 9. Be2 {[%emt 0:01:55]} Bg4 {[%emt 0:09:50]} 10. dxc5 {[%emt 0:00:09]} Bxc5 {[%emt 0:01:01]} 11. O-O {[%emt 0:00:07]} Rc8 {[%emt 0:05:09]} 12. Rc1 {[%emt 0:07:55]} Bd6 {[%emt 0:07:46]} 13. Nd4 {[%emt 0:16:10]} Bxe2 {[%emt 0:06:04]} 14. Ncxe2 {[%emt 0:00:02]} Re8 {[%emt 0:01:26]} 15. Qd3 {[%emt 0:10:38]} Be5 {[%emt 0:15:09]} 16. Nxc6 {[%emt 0:02:04]} bxc6 {[%emt 0:00:13]} 17. Bxe5 {[%emt 0:00:08]} Rxe5 {[%emt 0:00:05]} 18. Rc2 {[%emt 0:02:14]} c5 {[%emt 0:05:37]} 19. Rfc1 {[%emt 0:05:00]} Qa5 {[%emt 0:00:40]} 20. Qc3 {[%emt 0:19:16]} Qxc3 {[%emt 0:01:01]} 21. Rxc3 {[%emt 0:00:02]} Ne4 {[%emt 0:00:11]} 22. Rd3 {[%emt 0:03:31]} Nf6 {[%emt 0:12:13]} 23. f3 {[%emt 0:01:31]} g5 {[%emt 0:01:03]} 24. Kf2 {[%emt 0:00:23]} a5 {[%emt 0:05:50]} 25. g4 {[%emt 0:09:42]} h5 {[%emt 0:08:54]} 26. gxh5 {[%emt 0:06:10]} g4 {[%emt 0:03:11]} 27. fxg4 {[%emt 0:05:50]} Nxg4+ {[%emt 0:00:09]} 28. Kf3 {[%emt 0:00:03]} Nf6 {[%emt 0:00:39]} 29. Nf4 {[%emt 0:00:58]} Kh7 {[%emt 0:01:51]} 30. h4 {[%emt 0:03:28]} Kh6 {[%emt 0:02:25]} 31. Rg1 {[%emt 0:00:02]} c4 {[%emt 0:01:40]} 32. bxc4 {[%emt 0:00:27]} Rxc4 {[%emt 0:00:02]} 33. Rb3 {[%emt 0:02:22]} d4 {[%emt 0:00:59]} 34. exd4 {[%emt 0:02:23]} Rxd4 {[%emt 0:00:08]} 35. Rg5 {[%emt 0:01:23]} Re1 {[%emt 0:01:41]} 36. Ng2 {[%emt 0:00:38]} Re6 {[%emt 0:00:48]} 37. Rxa5 {[%emt 0:00:38]} Nxh5 {[%emt 0:00:24]} 38. Rxh5+ {[%emt 0:00:47]} Kxh5 {[%emt 0:00:04]} 39. Nf4+ {[%emt 0:00:02]} Kxh4 {[%emt 0:00:57]} 40. Nxe6 {[%emt 0:00:02]} fxe6 {[%emt 0:00:08]} 41. Re3 {[%emt 0:30:42]} Kg5 {[%emt 0:30:12]} 42. Rxe6 {[%emt 0:00:19]} Ra4 {[%emt 0:00:52]} 43. Re2 {[%emt 0:00:05]} Kf5 {[%emt 0:00:06]} 44. Kf2 {[%emt 0:00:18]} Rf4+ {[%emt 0:00:19]} 45. Ke1 {[%emt 0:00:04]} Re4 {[%emt 0:00:06]} 46. Rxe4 {[%emt 0:00:04]} Kxe4 {[%emt 0:00:04]} 47. Kd2 {[%emt 0:00:05]} Kd4 {[%emt 0:00:04]} 48. Kc2 {[%emt 0:00:06]} Kd5 1/2-1/2

[Event "FRA-chT Top 12 2019"]
[Site "Brest"]
[Date "2019.05.19"]
[Round "2.5"]
[White "Lefebvre, Herve"]
[Black "Maze, Sebastien"]
[Result "1-0"]
[ECO "B48"]
[WhiteElo "2291"]
[BlackElo "2579"]
[Annotator "RC"]
[PlyCount "73"]
[EventDate "2019.05.18"]
[EventType "team-tourn"]
[EventCountry "FRA"]
[SourceTitle "playchess.com"]
[Source "ChessBase"]
[SourceQuality "1"]
[TimeControl "40/5400+30:1800+30"]

1. e4 {[%emt 0:00:00]} c5 {[%emt 0:00:00]} 2. Nf3 {[%emt 0:00:00]} Nc6 {[%emt 0:00:00]} 3. d4 {[%emt 0:00:00]} cxd4 {[%emt 0:00:00]} 4. Nxd4 {[%emt 0:00:00]} e6 {[%emt 0:00:00]} 5. Nc3 {[%emt 0:00:00]} Qc7 {[%emt 0:00:00]} 6. Be3 {[%emt 0:00:51]} Nf6 {[%emt 0:00:33]} 7. f4 {[%emt 0:11:38]} Nxd4 {[%emt 0:09:08]} 8. Qxd4 {[%emt 0:20:59]} b6 {[%emt 0:00:51]} 9. Be2 {[%emt 0:03:15]} Bb7 {[%emt 0:01:36]} 10. Bf3 {[%emt 0:03:06]} Bc5 {[%emt 0:02:21]} 11. Qd3 {[%emt 0:01:10]} Bb4 {[%emt 0:00:11]} 12. O-O {[%emt 0:05:48]} Bxc3 {[%emt 0:01:02]} 13. bxc3 {[%emt 0:00:05]} O-O {[%emt 0:07:10]} 14. Bd4 {[%emt 0:06:11]} d6 {[%emt 0:05:25]} 15. e5 {[%emt 0:02:23]} Nd5 {[%emt 0:04:58]} 16. Be4 {[%emt 0:01:53]} g6 {[%emt 0:01:20]} 17. Rae1 {[%emt 0:17:39]} dxe5 {[%emt 0:08:09]} 18. Bxe5 {[%emt 0:00:06]} Qc5+ {[%emt 0:00:04]} 19. Bd4 {[%emt 0:00:09]} Qd6 {[%emt 0:00:24]} 20. Be5 {[%emt 0:00:16]} Qe7 {[%emt 0:06:06]} 21. c4 {[%emt 0:04:27]} Nb4 {[%emt 0:00:16]} 22. Qd6 {[%emt 0:00:03]} Qxd6 {[%emt 0:00:39]} 23. Bxd6 {[%emt 0:00:02]} Bxe4 {[%emt 0:00:10]} 24. Rxe4 {[%emt 0:02:33]} Na6 {[%emt 0:03:14]} 25. Bxf8 {[%emt 0:00:14]} Kxf8 {[%emt 0:00:02]} 26. Rd4 {[%emt 0:01:28]} Ke7 {[%emt 0:00:11]} 27. g4 {[%emt 0:02:58]} f5 {[%emt 0:01:31]} 28. g5 {[%emt 0:01:06]} h5 {[%emt 0:01:39]} 29. gxh6 {[%emt 0:00:03]} Rh8 {[%emt 0:00:03]} 30. Rf3 {[%emt 0:00:05]} Nc5 {[%emt 0:03:49]} 31. Rh3 {[%emt 0:00:19]} Rh7 {[%emt 0:01:54]} 32. Kg2 {[%emt 0:01:19]} e5 {[%emt 0:00:20]} 33. fxe5 {[%emt 0:00:27]} Ne6 {[%emt 0:00:04]} 34. Ra3 {[%emt 0:00:43]} a5 {[%emt 0:00:24]} 35. Rd6 {[%emt 0:00:40]} Rxh6 {[%emt 0:00:02]} 36. Rxb6 {[%emt 0:00:11]} Nf4+ {[%emt 0:00:06]} 37. Kh1 {[%emt 0:00:43]} 1-0

[Event "FRA-chT Top 12 2019"]
[Site "Brest"]
[Date "2019.05.19"]
[Round "2.8"]
[White "Maisuradze, Nino"]
[Black "Fruteau, Sabine"]
[Result "1-0"]
[ECO "A36"]
[WhiteElo "2179"]
[BlackElo "2015"]
[Annotator "NA RC"]
[PlyCount "63"]
[EventDate "2019.05.18"]
[EventType "team-tourn"]
[EventCountry "FRA"]
[SourceTitle "playchess.com"]
[Source "ChessBase"]
[SourceQuality "1"]
[TimeControl "40/5400+30:1800+30"]

1. c4 {[%emt 0:00:00]} c5 {[%emt 0:00:54]} 2. Nc3 {[%emt 0:00:07]} Nc6 {[%emt 0:00:45]} 3. g3 {[%emt 0:00:56]} g6 {[%emt 0:01:42]} 4. Bg2 {[%emt 0:00:03]} Bg7 {[%emt 0:00:04]} 5. e3 {[%emt 0:03:03]} e6 {[%emt 0:13:38]} 6. Nge2 {[%emt 0:00:46]} Nge7 {[%emt 0:00:07]} 7. d4 {[%emt 0:29:06]} cxd4 {[%emt 0:41:37]} 8. exd4 {[%emt 0:03:33]} d5 {[%emt 0:00:05]} 9. c5 {[%emt 0:04:02]} O-O {[%emt 0:05:18]} 10. O-O {[%emt 0:05:29]} b6 {[%emt 0:00:07]} 11. a3 {[%emt 0:05:54]} bxc5 {[%emt 0:05:50]} 12. dxc5 {[%emt 0:00:10]} a5 {[%emt 0:04:37]} 13. Rb1 {[%emt 0:04:04]} Ba6 {[%emt 0:00:27]} 14. Re1 {[%emt 0:05:09]} Rb8 {[%emt 0:03:26]} 15. Bd2 {[%emt 0:01:20]} Bd3 {[%emt 0:01:04]} 16. Qa4 {[%emt 0:02:44]} Bxb1 {[%emt 0:05:36]} 17. Rxb1 {[%emt 0:00:04]} Qc8 {[%emt 0:00:08]} 18. b4 {[%emt 0:02:44]} axb4 {[%emt 0:02:10]} 19. axb4 {[%emt 0:00:02]} Ra8 {[%emt 0:01:37]} 20. Qd1 {[%emt 0:04:49]} Ne5 {[%emt 0:02:50]} 21. Na4 {[%emt 0:05:55]} Nc4 {[%emt 0:00:06]} 22. Bc3 {[%emt 0:00:29]} Qa6 23. Bxg7 {[%emt 0:00:31]} Kxg7 {[%emt 0:04:08]} 24. Nec3 {[%emt 0:01:03]} Rfb8 {[%emt 0:02:53]} 25. Bf1 {[%emt 0:00:40]} Kg8 {[%emt 0:01:38]} 26. b5 {[%emt 0:00:43]} Qa5 {[%emt 0:00:22]} 27. Bxc4 {[%emt 0:01:20]} dxc4 {[%emt 0:00:05]} 28. Qd4 {[%emt 0:00:26]} Rd8 {[%emt 0:01:04]} 29. Qxc4 {[%emt 0:00:24]} Nd5 {[%emt 0:00:06]} 30. b6 {[%emt 0:01:36]} Nxc3 {[%emt 0:01:11]} 31. Nxc3 {[%emt 0:00:06]} Rac8 {[%emt 0:00:58]} 32. c6 {[%emt 0:02:40]} 1-0

[Event "FRA-chT Top 12 2019"]
[Site "Brest"]
[Date "2019.05.19"]
[Round "2.8"]
[White "Bolon, Karelle"]
[Black "Skripchenko, Almira"]
[Result "0-1"]
[ECO "B20"]
[WhiteElo "2018"]
[BlackElo "2406"]
[Annotator "NA RC"]
[PlyCount "64"]
[EventDate "2019.05.18"]
[EventType "team-tourn"]
[EventCountry "FRA"]
[SourceTitle "playchess.com"]
[Source "ChessBase"]
[SourceQuality "1"]
[TimeControl "40/5400+30:1800+30"]

1. e4 {[%emt 0:00:00]} c5 {[%emt 0:00:18]} 2. a3 {[%emt 0:00:07]} e6 {[%emt 0:11:06]} 3. b4 {[%emt 0:02:46]} cxb4 {[%emt 0:01:06]} 4. axb4 {[%emt 0:00:31]} Bxb4 {[%emt 0:00:14]} 5. c3 {[%emt 0:00:24]} Bf8 {[%emt 0:08:08]} 6. d4 {[%emt 0:02:59]} d5 {[%emt 0:02:25]} 7. e5 {[%emt 0:04:57]} Bd7 {[%emt 0:06:02]} 8. Bd3 {[%emt 0:03:07]} Nc6 {[%emt 0:00:59]} 9. Ne2 {[%emt 0:03:12]} h5 {[%emt 0:01:30]} 10. Nf4 {[%emt 0:02:12]} Qb6 {[%emt 0:23:33]} 11. Na3 {[%emt 0:19:27]} ({Not} 11. Nxh5 {[#]} Nxd4 $1 {[%mdl 512]} 12. Nd2 Rc8 $17) 11... a6 {[%emt 0:05:53]} 12. Nxh5 {[%emt 0:26:37]} (12. O-O $14) 12... Rc8 $11 {[%emt 0:11:49]} 13. Qg4 {[%emt 0:07:55]} g6 {[%emt 0:03:15]} 14. Bxg6 {[%emt 0:07:16]} fxg6 {[%emt 0:00:39]} 15. Qxg6+ {[%emt 0:00:09]} Kd8 {[%emt 0:00:06]} 16. Ng7 {[%emt 0:07:05]} Nce7 {[%emt 0:08:59]} 17. Qf7 {[%emt 0:02:18]} Kc7 {[%emt 0:02:36]} 18. Rb1 {[%emt 0:01:05]} Qc6 {[%emt 0:01:22]} 19. Rb3 {[%emt 0:02:01]} Kb8 {[%emt 0:02:04]} 20. O-O {[%emt 0:00:28]} Rh7 {[%emt 0:00:26]} 21. Bg5 {[%emt 0:02:57]} Rxg7 {[%emt 0:00:31]} 22. Qh5 {[%emt 0:00:11]} Be8 {[%emt 0:01:19]} 23. Qh4 {[%emt 0:00:23]} Nf5 {[%emt 0:00:21]} 24. Qf4 {[%emt 0:00:04]} Qa4 {[%emt 0:00:48]} 25. Rfb1 {[%emt 0:00:47]} Bxa3 {[%emt 0:00:27]} 26. g4 {[%emt 0:00:09]} Bg6 {[%emt 0:02:22]} 27. Rb6 {[%emt 0:00:52]} Qc2 {[%emt 0:02:18]} 28. Bf6 {[%emt 0:00:29]} Rgc7 {[%emt 0:00:45]} 29. gxf5 {[%emt 0:01:42]} Bxf5 {[%emt 0:00:15]} 30. R6b3 {[%emt 0:00:24]} Nxf6 {[%emt 0:00:47]} 31. exf6 {[%emt 0:00:14]} Rg8+ {[%emt 0:00:03]} 32. Kf1 {[%emt 0:01:09]} Bd3+ {[%emt 0:00:07]} 0-1

[Event "FRA-chT Top 12 2019"]
[Site "Brest"]
[Date "2019.05.20"]
[Round "3.3"]
[White "Gukesh D"]
[Black "Cornette, Matthieu"]
[Result "1-0"]
[ECO "A06"]
[WhiteElo "2533"]
[BlackElo "2553"]
[Annotator "RC"]
[PlyCount "65"]
[EventDate "2019.05.18"]
[EventType "team-tourn"]
[EventCountry "FRA"]
[SourceTitle "playchess.com"]
[Source "ChessBase"]
[SourceQuality "1"]
[TimeControl "40/5400+30:1800+30"]

1. Nf3 d5 2. g3 Nf6 3. Bg2 c5 4. O-O e6 5. c4 d4 6. e3 Nc6 7. exd4 cxd4 8. d3 Bd6 9. Bg5 h6 10. Bxf6 Qxf6 11. Nbd2 Qe7 12. a3 a5 13. Ne4 Bc7 14. c5 O-O 15. Nfd2 f5 16. Nd6 Bxd6 17. cxd6 Qxd6 18. Nc4 Qc7 19. Re1 Bd7 20. Rc1 Ra6 21. Re2 Re8 22. Qe1 Qb8 23. f4 b5 24. Nd2 a4 25. b4 Qd6 26. Nf3 Rc8 27. Rec2 Ra7 28. Ne5 Rac7 29. Nxc6 Bxc6 30. Qe5 Qd7 31. h4 Kf7 32. Bxc6 Rxc6 33. Qxb5 1-0

[Event "FRA-chT Top 12 2019"]
[Site "Brest"]
[Date "2019.05.20"]
[Round "3.6"]
[White "Milliet, Sophie"]
[Black "Relange, Eloi"]
[Result "1-0"]
[ECO "C41"]
[WhiteElo "2400"]
[BlackElo "2456"]
[Annotator "RC"]
[PlyCount "67"]
[EventDate "2019.05.18"]
[EventType "team-tourn"]
[EventCountry "FRA"]
[SourceTitle "playchess.com"]
[Source "ChessBase"]
[SourceQuality "1"]
[TimeControl "40/5400+30:1800+30"]

1. e4 {[%emt 0:00:00]} d6 {[%emt 0:00:17]} 2. d4 {[%emt 0:00:00]} Nf6 {[%emt 0:00:13]} 3. Nc3 {[%emt 0:00:00]} e5 {[%emt 0:00:10]} 4. Nf3 {[%emt 0:00:00]} Nbd7 {[%emt 0:00:14]} 5. Bc4 {[%emt 0:00:06]} Be7 {[%emt 0:00:11]} 6. O-O {[%emt 0:01:39]} O-O {[%emt 0:00:18]} 7. a4 {[%emt 0:06:04]} c6 {[%emt 0:00:53]} 8. h3 {[%emt 0:01:23]} b6 {[%emt 0:18:51]} 9. Qe2 {[%emt 0:01:37]} Bb7 {[%emt 0:09:37]} 10. Rd1 {[%emt 0:02:10]} Qc7 {[%emt 0:00:51]} 11. Ba2 {[%emt 0:03:01]} a6 {[%emt 0:05:50]} 12. Nh4 {[%emt 0:07:14]} g6 {[%emt 0:12:54]} 13. Bh6 {[%emt 0:11:19]} Rfc8 {[%emt 0:09:56]} 14. dxe5 {[%emt 0:02:00]} Nxe5 {[%emt 0:00:11]} 15. f4 {[%emt 0:00:16]} Ned7 {[%emt 0:00:14]} 16. Nf3 {[%emt 0:02:43]} Re8 {[%emt 0:02:02]} 17. e5 {[%emt 0:07:06]} Nd5 {[%emt 0:06:10]} 18. e6 {[%emt 0:18:46]} Bf8 {[%emt 0:01:01]} 19. exf7+ {[%emt 0:07:57]} Kxf7 {[%emt 0:00:21]} 20. Ng5+ {[%emt 0:00:25]} Kg8 {[%emt 0:00:10]} 21. Nxd5 {[%emt 0:01:20]} cxd5 {[%emt 0:01:02]} 22. Rxd5 {[%emt 0:01:13]} Bxd5 {[%emt 0:15:31]} 23. Bxd5+ {[%emt 0:00:03]} Kh8 {[%emt 0:00:07]} 24. Nf7+ {[%emt 0:00:10]} Kg8 {[%emt 0:00:06]} 25. Ng5+ {[%emt 0:00:03]} Kh8 {[%emt 0:00:04]} 26. Nf7+ {[%emt 0:02:51]} Kg8 {[%emt 0:00:05]} 27. Nxd6+ {[%emt 0:02:03]} Kh8 {[%emt 0:00:05]} 28. Nf7+ {[%emt 0:00:29]} Kg8 {[%emt 0:00:05]} 29. Nd6+ {[%emt 0:01:11]} Kh8 {[%emt 0:00:05]} 30. Nxe8 {[%emt 0:00:21]} Qc5+ {[%emt 0:00:26]} 31. Kh1 {[%emt 0:00:13]} Qxd5 {[%emt 0:00:19]} 32. Bxf8 {[%emt 0:01:22]} Qf7 {[%emt 0:00:08]} 33. Bg7+ {[%emt 0:00:24]} Kg8 {[%emt 0:00:04]} 34. Re1 {[%emt 0:00:33]} 1-0

[Event "FRA-chT Top 12 2019"]
[Site "Brest"]
[Date "2019.05.20"]
[Round "3.8"]
[White "Nelis, Jean-Francois"]
[Black "Le Roux, Jean-Pierre"]
[Result "0-1"]
[ECO "B06"]
[WhiteElo "2149"]
[BlackElo "2539"]
[Annotator "RC"]
[PlyCount "58"]
[EventDate "2019.05.18"]
[EventType "team-tourn"]
[EventCountry "FRA"]
[SourceTitle "playchess.com"]
[Source "ChessBase"]
[SourceQuality "1"]
[TimeControl "40/5400+30:1800+30"]

1. e4 {[%emt 0:00:00]} g6 {[%emt 0:00:00]} 2. d4 {[%emt 0:00:00]} Bg7 {[%emt 0:00:00]} 3. Nc3 {[%emt 0:00:34]} a6 {[%emt 0:01:36]} 4. Be3 {[%emt 0:05:36]} b5 {[%emt 0:00:34]} 5. a3 {[%emt 0:05:24]} d6 {[%emt 0:01:51]} 6. f4 {[%emt 0:00:45]} Nd7 {[%emt 0:03:19]} 7. Be2 {[%emt 0:03:35]} Bb7 {[%emt 0:04:35]} 8. Bf3 {[%emt 0:00:32]} e5 {[%emt 0:01:13]} 9. dxe5 {[%emt 0:06:16]} dxe5 {[%emt 0:00:11]} 10. f5 {[%emt 0:00:47]} gxf5 {[%emt 0:08:13]} 11. exf5 {[%emt 0:00:18]} e4 {[%emt 0:00:11]} 12. Be2 {[%emt 0:01:48]} Bh6 {[%emt 0:19:49]} 13. Qd4 {[%emt 0:11:35]} Qf6 {[%emt 0:14:38]} 14. Qxf6 {[%emt 0:16:47]} Ndxf6 {[%emt 0:00:12]} 15. Kf2 {[%emt 0:00:40]} Bxe3+ {[%emt 0:04:10]} 16. Kxe3 {[%emt 0:00:02]} Ne7 {[%emt 0:01:05]} 17. Nh3 {[%emt 0:19:08]} Rg8 {[%emt 0:03:24]} 18. g4 {[%emt 0:04:08]} Nxg4+ {[%emt 0:00:26]} 19. Bxg4 {[%emt 0:00:07]} Rxg4 {[%emt 0:00:05]} 20. Raf1 {[%emt 0:01:27]} Rh4 {[%emt 0:03:56]} 21. Ng5 {[%emt 0:05:00]} h6 {[%emt 0:00:13]} 22. Ngxe4 {[%emt 0:03:01]} Bxe4 {[%emt 0:00:15]} 23. Nxe4 {[%emt 0:00:17]} Nd5+ {[%emt 0:00:03]} 24. Kd3 {[%emt 0:09:24]} O-O-O {[%emt 0:00:09]} 25. Ng3 {[%emt 0:00:41]} Rc4 {[%emt 0:02:47]} 26. Rc1 {[%emt 0:03:50]} h5 {[%emt 0:01:18]} 27. Ke2 {[%emt 0:00:56]} Re8+ {[%emt 0:02:41]} 28. Kf2 {[%emt 0:00:37]} Rf4+ {[%emt 0:00:16]} 29. Kg2 {[%emt 0:00:26]} h4 {[%emt 0:00:33]} 0-1